bitfinex/quotes_BTCUSD_20240921
["timestamp","ask_amount","ask_price","bid_price","bid_amount"]
[1726911933449,2.21633769,63181.0,63180.0,0.00165]
[1726911933865,2.21634318,63181.0,63180.0,0.00165]
[1726911934319,2.20234318,63181.0,63180.0,0.00165]
[1726911934541,2.09784095,63181.0,63180.0,0.00165]
[1726911934997,2.08384095,63181.0,63180.0,0.00165]
[1726911935244,2.11184095,63181.0,63180.0,0.00165]
[1726911935665,2.09784095,63181.0,63180.0,0.00165]
[1726911935956,2.11184095,63181.0,63180.0,0.00165]
[1726911938875,2.11287407,63181.0,63180.0,0.00165]
[1726911943675,2.11313899,63181.0,63180.0,0.00165]
[1726911944217,2.11314389,63181.0,63180.0,0.00165]
[1726911957593,2.09914389,63181.0,63180.0,0.00165]
[1726911958016,2.11314389,63181.0,63180.0,0.00165]
[1726911958447,2.10024997,63181.0,63180.0,0.00165]
[1726911959103,2.11424997,63181.0,63180.0,0.00165]
[1726911959543,2.10024997,63181.0,63180.0,0.00165]
[1726911960021,2.11424997,63181.0,63180.0,0.00165]
[1726911960655,2.25659879,63181.0,63180.0,0.00165]
[1726911960872,2.11424997,63181.0,63180.0,0.00165]
[1726911961359,2.85452938,63181.0,63180.0,0.00165]
[1726911961566,2.53788406,63181.0,63180.0,0.00165]
[1726911961784,2.85443406,63181.0,63180.0,0.00165]
[1726911962505,2.53788406,63181.0,63180.0,0.00165]
[1726911964528,2.27953907,63181.0,63180.0,0.00165]
[1726911964748,2.58133908,63181.0,63180.0,0.00165]
[1726911964963,2.27953907,63181.0,63180.0,0.00165]
[1726911965194,1.93998907,63181.0,63180.0,0.00165]
[1726911965421,1.93998907,63181.0,63180.0,0.09995]
[1726911965422,1.79759758,63181.0,63180.0,0.09995]
[1726911965676,0.81799391,63181.0,63180.0,0.09995]
[1726911965966,0.93665539,63181.0,63180.0,0.09995]
[1726911966186,0.80399391,63181.0,63180.0,0.09995]
[1726911966422,0.93762889,63181.0,63180.0,0.09995]
[1726911966656,0.50242031,63181.0,63180.0,0.09995]
[1726911966881,0.48842031,63181.0,63180.0,0.09995]
[1726911967353,0.60707889,63181.0,63180.0,0.09995]
[1726911967571,0.59307889,63181.0,63180.0,0.09995]
[1726911967791,0.60107889,63181.0,63180.0,0.09995]
[1726911968008,0.59307889,63181.0,63180.0,0.09995]
[1726911968490,0.59707889,63181.0,63180.0,0.09995]
[1726911968932,0.60107889,63181.0,63180.0,0.09995]
[1726911969423,0.59707889,63181.0,63180.0,0.09995]
[1726911969861,0.60007889,63181.0,63180.0,0.09995]
[1726911970503,0.91662889,63181.0,63180.0,0.09995]
[1726911971291,0.91666887,63181.0,63180.0,0.09995]
[1726911971706,1.11452872,63181.0,63180.0,0.00165]
[1726911972818,0.79497872,63181.0,63180.0,0.00165]
[1726911973033,0.80297872,63181.0,63180.0,0.00265]
[1726911973252,0.80297872,63181.0,63180.0,0.01115751]
[1726911973478,0.80297872,63181.0,63180.0,0.00265]
[1726911973668,0.79497872,63181.0,63180.0,0.01015751]
[1726911973920,0.79497872,63181.0,63180.0,0.00265]
[1726911974137,0.80297872,63181.0,63180.0,0.01115751]
[1726911974359,0.80297872,63181.0,63180.0,0.00265]
[1726911974360,0.79897872,63181.0,63180.0,0.00265]
[1726911974585,0.79897872,63181.0,63180.0,0.01115751]
[1726911974830,0.80797872,63181.0,63180.0,0.00265]
[1726911975049,0.79897872,63181.0,63180.0,0.01115751]
[1726911975279,0.80797872,63181.0,63180.0,0.00265]
[1726911975518,1.12452872,63181.0,63180.0,0.01115751]
[1726911975731,0.9266761,63181.0,63180.0,0.00265]
[1726911975951,0.92524939,63181.0,63180.0,0.00265]
[1726911976450,0.80655313,63181.0,63180.0,0.00265]
[1726911976686,0.92524868,63181.0,63180.0,0.00265]
[1726911977100,1.24179868,63181.0,63180.0,0.00265]
[1726911977333,0.92524501,63181.0,63180.0,0.00265]
[1726911978484,1.40484868,63181.0,63180.0,0.00265]
[1726911979206,1.2861568,63181.0,63180.0,0.00265]
[1726911979452,1.4048408,63181.0,63180.0,0.00265]
[1726911981329,1.40490165,63181.0,63180.0,0.00265]
[1726911981572,1.28622295,63181.0,63180.0,0.00265]
[1726911982049,1.40490165,63181.0,63180.0,0.00265]
[1726911982804,1.08835165,63181.0,63180.0,0.00265]
[1726911983062,1.06461048,63181.0,63180.0,0.00265]
[1726911983302,0.96967295,63181.0,63180.0,0.00265]
[1726911983541,1.06460952,63181.0,63180.0,0.00265]
[1726911983801,0.96967295,63181.0,63180.0,0.00265]
[1726911984497,1.28622295,63181.0,63180.0,0.00265]
[1726911984741,1.40490165,63181.0,63180.0,0.00265]
[1726911985218,1.08835165,63181.0,63180.0,0.00265]
[1726911985657,0.96967295,63181.0,63180.0,0.00265]
[1726911985875,1.08835165,63181.0,63180.0,0.00265]
[1726911986099,1.06460539,63181.0,63180.0,0.00265]
[1726911986585,1.06460559,63181.0,63180.0,0.00265]
[1726911987521,1.38115559,63181.0,63180.0,0.00265]
[1726911987736,0.96967295,63181.0,63180.0,0.00265]
[1726911988998,1.06460221,63181.0,63180.0,0.00265]
[1726911989096,0.96967295,63181.0,63180.0,0.00265]
[1726911989758,1.28622295,63181.0,63180.0,0.00265]
[1726911989990,1.38115186,63181.0,63180.0,0.00265]
[1726911990951,1.38115149,63181.0,63180.0,0.00265]
[1726911992095,1.28622295,63181.0,63180.0,0.00265]
[1726911992794,1.38115142,63181.0,63180.0,0.00265]
[1726911993242,1.38115144,63181.0,63180.0,0.00265]
[1726911993466,1.06460144,63181.0,63180.0,0.00265]
[1726911993693,0.96981937,63181.0,63180.0,0.00265]
[1726911993916,1.28636937,63181.0,63180.0,0.00265]
[1726911994190,1.38129786,63181.0,63180.0,0.00265]
[1726912000505,1.38216032,63181.0,63180.0,0.00265]
[1726912003948,1.28723207,63181.0,63180.0,0.00265]
[1726912004451,1.38217242,63181.0,63180.0,0.00265]
[1726912004677,1.60378207,63181.0,63180.0,0.00265]
[1726912004902,1.69488207,63181.0,63180.0,0.00265]
[1726912005127,1.81354238,63181.0,63180.0,0.00265]
[1726912006286,1.40589238,63181.0,63180.0,0.00265]
[1726912007184,1.28723207,63181.0,63180.0,0.00265]
[1726912007637,1.40589238,63181.0,63180.0,0.00265]
[1726912009012,1.40596895,63181.0,63180.0,0.00265]
[1726912009233,1.28723207,63181.0,63180.0,0.00265]
[1726912015280,0.55413207,63181.0,63180.0,0.00265]
[1726912015530,0.86268207,63181.0,63180.0,0.00165]
[1726912016005,0.87068207,63181.0,63180.0,0.01015792]
[1726912016219,0.86168207,63181.0,63180.0,0.01015792]
[1726912016439,0.85368207,63181.0,63180.0,0.01015792]
[1726912016903,0.85768207,63181.0,63180.0,0.01015792]
[1726912017605,0.86668207,63181.0,63180.0,0.01015792]
[1726912017852,0.85768207,63181.0,63180.0,0.01015792]
[1726912018292,0.86268207,63181.0,63180.0,0.01015792]
[1726912019954,0.86268207,63181.0,63180.0,0.00165]
[1726912026947,0.5066651,63181.0,63180.0,0.00165]
[1726912027167,0.38785707,63181.0,63180.0,0.09205]
[1726912027393,0.42536549,63181.0,63180.0,0.10055104]
[1726912027701,0.47880207,63181.0,63180.0,0.10055104]
[1726912027914,0.3917143,63181.0,63180.0,0.10055104]
[1726912028138,0.0802749,63181.0,63180.0,0.10055104]
[1726912028361,0.2385499,63181.0,63180.0,0.10055104]
[1726912030241,0.167275,63181.0,63180.0,0.10055104]
[1726912031521,0.2385499,63181.0,63180.0,0.01015104]
[1726912032616,0.23851893,63181.0,63180.0,0.01015104]
[1726912032855,0.167275,63181.0,63180.0,0.01015104]
[1726912033085,0.23851893,63181.0,63180.0,0.01015104]
[1726912033779,0.167275,63181.0,63180.0,0.01015104]
[1726912034005,0.23851893,63181.0,63180.0,0.01015104]
[1726912034458,0.7000268,63181.0,63180.0,0.01015104]
[1726912035593,0.3834768,63181.0,63180.0,0.01015104]
[1726912036938,0.7000268,63181.0,63180.0,0.01015104]
[1726912038047,1.0165768,63181.0,63180.0,0.01015104]
[1726912038417,1.13531669,63181.0,63180.0,0.00165]
[1726912040384,0.81876669,63181.0,63180.0,0.00165]
[1726912040600,1.13531669,63181.0,63180.0,0.00165]
[1726912040817,1.0115768,63181.0,63180.0,0.00165]
[1726912041025,1.13032009,63181.0,63180.0,0.00165]
[1726912041240,1.13332009,63181.0,63180.0,0.00165]
[1726912041494,1.13303766,63181.0,63180.0,0.00165]
[1726912041665,1.13903766,63181.0,63180.0,0.00165]
[1726912042863,1.13303766,63181.0,63180.0,0.00165]
[1726912043059,1.13803766,63181.0,63180.0,0.00165]
[1726912044971,1.30109133,63181.0,63180.0,0.00165]
[1726912045798,1.08517353,63181.0,63180.0,0.00165]
[1726912046047,0.96642867,63181.0,63180.0,0.00165]
[1726912047673,1.14662867,63181.0,63180.0,0.00165]
[1726912049643,1.14662867,63181.0,63180.0,0.001408]
[1726912049846,1.14662867,63181.0,63180.0,0.0099122]
[1726912050556,0.83007867,63181.0,63180.0,0.0099122]
[1726912052282,1.14662867,63181.0,63180.0,0.0099122]
[1726912052488,0.83007867,63181.0,63180.0,0.0099122]
[1726912052706,0.83007867,63181.0,63180.0,0.001408]
[1726912052952,0.83007867,63181.0,63180.0,0.00991284]
[1726912055130,1.04593899,63181.0,63180.0,0.00991284]
[1726912055354,1.04593899,63181.0,63180.0,0.001408]
[1726912057599,0.96443899,63181.0,63180.0,0.001408]
[1726912059630,1.28098899,63181.0,63180.0,0.001408]
[1726912060683,0.96443899,63181.0,63180.0,0.001408]
[1726912060898,1.08317889,63181.0,63180.0,0.001408]
[1726912061109,1.08317889,63181.0,63180.0,0.00991284]
[1726912064644,1.08400389,63181.0,63180.0,0.00991284]
[1726912065685,1.08508139,63181.0,63180.0,0.00991284]
[1726912068742,0.96633943,63181.0,63180.0,0.00991284]
[1726912068943,0.96633943,63181.0,63180.0,0.001408]
[1726912068944,1.08508139,63181.0,63180.0,0.001408]
[1726912069168,0.96633943,63181.0,63180.0,0.001408]
[1726912070502,0.96645581,63181.0,63180.0,0.001408]
[1726912070706,1.08019626,63181.0,63180.0,0.001408]
[1726912070920,1.38974626,63181.0,63180.0,0.001408]
[1726912071126,1.39774626,63181.0,63180.0,0.001408]
[1726912071342,1.40674626,63181.0,63180.0,0.001408]
[1726912071550,1.39874626,63181.0,63180.0,0.001408]
[1726912071748,1.38974626,63181.0,63180.0,0.001408]
[1726912071967,1.40674626,63181.0,63180.0,0.001408]
[1726912075375,1.40523313,63181.0,63180.0,0.001408]
[1726912076226,1.28647374,63181.0,63180.0,0.001408]
[1726912078730,0.96992374,63181.0,63180.0,0.001408]
[1726912079348,1.28647374,63181.0,63180.0,0.001408]
[1726912080015,1.18777374,63181.0,63180.0,0.001408]
[1726912080234,1.18797301,63181.0,63180.0,0.001408]
[1726912082371,1.18802115,63181.0,63180.0,0.001408]
[1726912083523,1.18890058,63181.0,63180.0,0.001408]
[1726912084426,1.50545058,63181.0,63180.0,0.001408]
[1726912084660,1.80827214,63181.0,63180.0,0.001408]
[1726912085410,1.95068601,63181.0,63180.0,0.001408]
[1726912085634,1.33146736,63181.0,63180.0,0.001408]
[1726912086147,1.63412389,63181.0,63180.0,0.001408]
[1726912086339,1.33146736,63181.0,63180.0,0.001408]
[1726912086561,1.64801736,63181.0,63180.0,0.001408]
[1726912087705,1.33146736,63181.0,63180.0,0.001408]
[1726912088410,1.18890058,63181.0,63180.0,0.001408]
[1726912089150,1.33146736,63181.0,63180.0,0.001408]
[1726912089415,1.18890058,63181.0,63180.0,0.001408]
[1726912090130,1.33146736,63181.0,63180.0,0.001408]
[1726912090361,1.50545058,63181.0,63180.0,0.001408]
[1726912090602,1.18890058,63181.0,63180.0,0.001408]
[1726912091068,1.68890058,63181.0,63180.0,0.001408]
[1726912091536,2.00545058,63181.0,63180.0,0.001408]
[1726912093353,1.99745058,63181.0,63180.0,0.001408]
[1726912093800,2.00845058,63181.0,63180.0,0.001408]
[1726912094582,1.99945058,63181.0,63180.0,0.001408]
[1726912094817,2.01145058,63181.0,63180.0,0.001408]
[1726912095999,0.87835058,63181.0,63180.0,0.001408]
[1726912096221,0.99710221,63181.0,63180.0,0.001408]
[1726912096677,0.97334835,63181.0,63180.0,0.001408]
[1726912097386,0.66170367,63181.0,63180.0,0.001408]
[1726912097680,0.97336428,63181.0,63180.0,0.001408]
[1726912097911,0.87836401,63181.0,63180.0,0.001408]
[1726912098883,0.97335842,63181.0,63180.0,0.001408]
[1726912100045,0.65680842,63181.0,63180.0,0.001408]
[1726912100514,0.65680842,63181.0,63180.0,0.0087279]
[1726912100752,0.56181401,63181.0,63180.0,0.001408]
[1726912100968,0.64580842,63181.0,63180.0,0.001408]
[1726912101184,0.64580842,63181.0,63180.0,0.0087279]
[1726912101396,0.65080842,63181.0,63180.0,0.0087279]
[1726912101684,0.63880842,63181.0,63180.0,0.0087279]
[1726912101936,0.54381401,63181.0,63180.0,0.0087279]
[1726912102168,0.96135253,63181.0,63180.0,0.0087279]
[1726912102399,0.66856564,63181.0,63180.0,0.0087279]
[1726912102618,0.98511564,63181.0,63180.0,0.0087279]
[1726912102866,0.98511564,63181.0,63180.0,0.001408]
[1726912102867,0.86636401,63181.0,63180.0,0.001408]
[1726912103098,0.98511564,63181.0,63180.0,0.001408]
[1726912103796,0.86636401,63181.0,63180.0,0.001408]
[1726912104041,0.98511564,63181.0,63180.0,0.001408]
[1726912104258,0.54981401,63181.0,63180.0,0.001408]
[1726912104718,0.66856564,63181.0,63180.0,0.001408]
[1726912104931,0.54981401,63181.0,63180.0,0.001408]
[1726912105659,0.86636401,63181.0,63180.0,0.001408]
[1726912105886,0.86636401,63181.0,63180.0,0.0087279]
[1726912106104,0.98511564,63181.0,63180.0,0.001408]
[1726912106314,0.98511564,63181.0,63180.0,0.0087279]
[1726912106315,0.86636401,63181.0,63180.0,0.0087279]
[1726912106554,0.86636401,63181.0,63180.0,0.001408]
[1726912106998,0.64970367,63181.0,63180.0,0.0087279]
[1726912107290,0.86629723,63181.0,63180.0,0.0087279]
[1726912109566,0.86629723,63181.0,63180.0,0.001408]
[1726912109791,0.64970367,63181.0,63180.0,0.001408]
[1726912111416,0.17487867,63181.0,63180.0,0.001408]
[1726912111655,0.33315367,63181.0,63180.0,0.001408]
[1726912111885,0.33315367,63181.0,63180.0,0.0087225]
[1726912112081,0.33315367,63181.0,63180.0,0.001408]
[1726912112337,0.33315367,63181.0,63180.0,0.0087225]
[1726912112558,0.33315367,63181.0,63180.0,0.001408]
[1726912112995,0.33315367,63181.0,63180.0,0.0087225]
[1726912117403,0.17487867,63181.0,63180.0,0.0087225]
[1726912118967,0.33315367,63181.0,63180.0,0.0087225]
[1726912119196,0.17487867,63181.0,63180.0,0.0087225]
[1726912120318,0.33315367,63181.0,63180.0,0.0087225]
[1726912132872,0.404344,63181.0,63180.0,0.0087225]
[1726912133090,0.40435336,63181.0,63180.0,0.0087225]
[1726912133535,0.40435336,63181.0,63180.0,0.001408]
[1726912134910,0.55064179,63181.0,63180.0,0.001408]
[1726912135137,0.64555891,63181.0,63180.0,0.001408]
[1726912135830,0.64551926,63181.0,63180.0,0.001408]
[1726912137504,0.96206926,63181.0,63180.0,0.001408]
[1726912137764,0.96208515,63181.0,63180.0,0.001408]
[1726912138649,0.96209199,63181.0,63180.0,0.001408]
[1726912139084,0.86711556,63181.0,63180.0,0.001408]
[1726912139297,0.98580768,63181.0,63180.0,0.001408]
[1726912140638,0.98590553,63181.0,63180.0,0.001408]
[1726912141104,0.98590553,63181.0,63180.0,0.00867259]
[1726912141343,0.98590553,63181.0,63180.0,0.001408]
[1726912141559,0.98590553,63181.0,63180.0,0.00867259]
[1726912142748,0.86716489,63181.0,63180.0,0.00867259]
[1726912146126,0.98590553,63181.0,63180.0,0.00867259]
[1726912146567,0.86716489,63181.0,63180.0,0.00867259]
[1726912147272,0.98590553,63181.0,63180.0,0.00867259]
[1726912153139,0.96216708,63181.0,63180.0,0.00867259]
[1726912153352,0.96216827,63181.0,63180.0,0.00867259]
[1726912154029,0.86716489,63181.0,63180.0,0.00867259]
[1726912154692,0.96216966,63181.0,63180.0,0.00867259]
[1726912155856,0.86716489,63181.0,63180.0,0.00867259]
[1726912156328,0.64562141,63181.0,63180.0,0.00867259]
[1726912158778,0.55200393,63181.0,63180.0,0.00867259]
[1726912159903,0.48873543,63181.0,63180.0,0.00867259]
[1726912160558,0.17487867,63181.0,63180.0,0.00867259]
[1726912161860,0.48618679,63181.0,63180.0,0.00867259]
[1726912162083,0.39118029,63181.0,63180.0,0.00867259]
[1726912162522,0.17487867,63181.0,63180.0,0.00867259]
[1726912162816,0.39119485,63181.0,63180.0,0.00867259]
[1726912163460,0.17487867,63181.0,63180.0,0.00867259]
[1726912163674,0.39114493,63181.0,63180.0,0.00867259]
[1726912164127,0.17487867,63181.0,63180.0,0.00867259]
[1726912164586,0.48621753,63181.0,63180.0,0.00867259]
[1726912164806,0.39121103,63181.0,63180.0,0.00867259]
[1726912165283,0.17487867,63181.0,63180.0,0.00867259]
[1726912165508,0.24613587,63181.0,63180.0,0.00867259]
[1726912166206,0.17487867,63181.0,63180.0,0.00867259]
[1726912166440,0.17451977,63181.0,63180.0,0.00867259]
[1726912167116,0.24577732,63181.0,63180.0,0.00867259]
[1726912167335,0.24577715,63181.0,63180.0,0.00867259]
[1726912167557,0.17451977,63181.0,63180.0,0.00867259]
[1726912168225,0.39088338,63181.0,63180.0,0.00867259]
[1726912168459,0.48587693,63181.0,63180.0,0.00867259]
[1726912168686,0.38586453,63181.0,63180.0,0.00867259]
[1726912168816,0.48087693,63181.0,63180.0,0.00867259]
[1726912169036,0.48587693,63181.0,63180.0,0.00867259]
[1726912169262,0.47987693,63181.0,63180.0,0.00867259]
[1726912169464,0.47487693,63181.0,63180.0,0.00867259]
[1726912169751,0.48287693,63181.0,63180.0,0.00867259]
[1726912169962,0.47687693,63181.0,63180.0,0.00867259]
[1726912170336,0.47987693,63181.0,63180.0,0.00867259]
[1726912171378,0.47987693,63181.0,63180.0,0.16694959]
[1726912171583,0.16851977,63181.0,63180.0,0.16694959]
[1726912172652,0.2397815,63181.0,63180.0,0.16694959]
[1726912173355,0.16851977,63181.0,63180.0,0.16694959]
[1726912173816,0.2397815,63181.0,63180.0,0.16694959]
[1726912174039,0.16851977,63181.0,63180.0,0.16694959]
[1726912174265,0.26353217,63181.0,63180.0,0.16694959]
[1726912174726,0.48033372,63181.0,63180.0,0.00867259]
[1726912174943,0.57853372,63181.0,63180.0,0.00867259]
[1726912175166,0.48351621,63181.0,63180.0,0.00867259]
[1726912175387,0.7605631,63181.0,63180.0,0.00866402]
[1726912175611,0.6022881,63181.0,63180.0,0.00866402]
[1726912176290,0.48351621,63181.0,63180.0,0.00866402]
[1726912176705,0.64179121,63181.0,63180.0,0.00866402]
[1726912176929,0.64137117,63181.0,63180.0,0.00866402]
[1726912177153,1.59102117,63181.0,63180.0,0.00866402]
[1726912177399,1.99364736,63181.0,63180.0,0.001408]
[1726912177620,2.09164736,63181.0,63180.0,0.001408]
[1726912177841,2.08982518,63181.0,63180.0,0.001408]
[1726912178078,2.08782518,63181.0,63180.0,0.001408]
[1726912178587,2.09282518,63181.0,63180.0,0.001408]
[1726912179035,2.08482518,63181.0,63180.0,0.001408]
[1726912179247,2.09882518,63181.0,63180.0,0.001408]
[1726912179681,2.09282518,63181.0,63180.0,0.001408]
[1726912180193,2.10282518,63181.0,63180.0,0.001408]
[1726912181050,2.09482518,63181.0,63180.0,0.001408]
[1726912181238,2.10382518,63181.0,63180.0,0.001408]
[1726912182119,2.16722218,63181.0,63180.0,0.001408]
[1726912182920,2.17055055,63181.0,63180.0,0.001408]
[1726912185227,2.31286331,63181.0,63180.0,0.001408]
[1726912185428,2.17055055,63181.0,63180.0,0.001408]
[1726912186528,2.17034039,63181.0,63180.0,0.001408]
[1726912188493,2.48689039,63181.0,63180.0,0.001408]
[1726912190292,2.62913135,63181.0,63180.0,0.001408]
[1726912191161,2.32546636,63181.0,63180.0,0.001408]
[1726912192423,2.1832254,63181.0,63180.0,0.001408]
[1726912192627,2.32502876,63181.0,63180.0,0.001408]
[1726912194413,2.18281,63181.0,63180.0,0.001408]
[1726912194618,2.32502876,63181.0,63180.0,0.001408]
[1726912195251,2.18281,63181.0,63180.0,0.001408]
[1726912197478,2.18296961,63181.0,63180.0,0.001408]
[1726912201085,1.96617173,63181.0,63180.0,0.001408]
[1726912201323,2.18297416,63181.0,63180.0,0.001408]
[1726912201977,2.22514804,63181.0,63180.0,0.001408]
[1726912202209,2.38582066,63181.0,63180.0,0.001408]
[1726912202863,2.36682066,63181.0,63180.0,0.001408]
[1726912203301,2.39482066,63181.0,63180.0,0.001408]
[1726912203527,2.39682066,63181.0,63180.0,0.001408]
[1726912203771,2.39482066,63181.0,63180.0,0.001408]
[1726912203990,2.39682066,63181.0,63180.0,0.001408]
[1726912204432,2.39482066,63181.0,63180.0,0.001408]
[1726912206912,2.39682066,63181.0,63180.0,0.001408]
[1726912215448,2.39482066,63181.0,63180.0,0.001408]
[1726912217081,2.36682066,63181.0,63180.0,0.001408]
[1726912217521,2.39482066,63181.0,63180.0,0.001408]
[1726912217966,2.38082066,63181.0,63180.0,0.001408]
[1726912218199,2.39482066,63181.0,63180.0,0.001408]
[1726912219348,2.55476627,63181.0,63180.0,0.001408]
[1726912220076,2.55512678,63181.0,63180.0,0.001408]
[1726912220821,2.39499855,63181.0,63180.0,0.001408]
[1726912223393,2.39699855,63181.0,63180.0,0.001408]
[1726912224973,2.39959087,63181.0,63180.0,0.001408]
[1726912228987,0.791552,63167.0,63166.0,0.0939]
[1726912229228,1.17228031,63167.0,63166.0,0.0939]
[1726912229455,1.17228031,63167.0,63166.0,0.101175]
[1726912229681,1.17228031,63167.0,63166.0,0.0939]
[1726912230592,1.18528031,63167.0,63166.0,0.0939]
[1726912230824,1.17828031,63167.0,63166.0,0.0939]
[1726912231524,1.17228031,63167.0,63166.0,0.0939]
[1726912231743,1.18328031,63167.0,63166.0,0.0939]
[1726912232930,1.19328031,63167.0,63166.0,0.0939]
[1726912235160,1.19317671,63167.0,63166.0,0.0939]
[1726912239515,1.19322953,63167.0,63166.0,0.0939]
[1726912239952,1.19322953,63167.0,63166.0,0.09555]
[1726912239953,1.31199485,63167.0,63166.0,0.09555]
[1726912240169,1.19322953,63167.0,63166.0,0.09555]
[1726912240645,1.31199485,63167.0,63166.0,0.09555]
[1726912240848,1.19322953,63167.0,63166.0,0.09555]
[1726912241061,1.31199832,63167.0,63166.0,0.09555]
[1726912243301,1.19322953,63167.0,63166.0,0.09555]
[1726912243733,1.18322953,63167.0,63166.0,0.09555]
[1726912243921,1.17222953,63167.0,63166.0,0.09555]
[1726912244171,1.18222953,63167.0,63166.0,0.09555]
[1726912244389,1.19222953,63167.0,63166.0,0.09555]
[1726912244607,1.18222953,63167.0,63166.0,0.09555]
[1726912245088,1.19122953,63167.0,63166.0,0.09555]
[1726912246237,1.18122953,63167.0,63166.0,0.09555]
[1726912246448,1.17222953,63167.0,63166.0,0.09555]
[1726912246673,1.18022953,63167.0,63166.0,0.09555]
[1726912247121,1.18222953,63167.0,63166.0,0.09555]
[1726912247372,1.19122953,63167.0,63166.0,0.09555]
[1726912249377,1.19122953,63167.0,63166.0,0.00165]
[1726912253943,1.50785053,63167.0,63166.0,0.00165]
[1726912254165,1.50907289,63167.0,63166.0,0.00165]
[1726912261188,1.19245189,63167.0,63166.0,0.00165]
[1726912262339,1.19225503,63167.0,63166.0,0.00165]
[1726912267161,1.19312709,63167.0,63166.0,0.00165]
[1726912272073,1.19318047,63167.0,63166.0,0.00165]
[1726912276968,1.19315684,63167.0,63166.0,0.00165]
[1726912281785,1.19316907,63167.0,63166.0,0.00165]
[1726912295217,1.19319947,63167.0,63166.0,0.00165]
[1726912306031,1.19418021,63167.0,63166.0,0.00165]
[1726912314793,1.18518021,63167.0,63166.0,0.00165]
[1726912315261,1.19418021,63167.0,63166.0,0.00165]
[1726912315746,1.18459634,63167.0,63166.0,0.00165]
[1726912316200,1.19359634,63167.0,63166.0,0.00165]
[1726912316429,1.18459634,63167.0,63166.0,0.00165]
[1726912316650,1.20159634,63167.0,63166.0,0.00165]
[1726912320506,1.20246588,63167.0,63166.0,0.00165]
[1726912323854,0.40617021,63167.0,63166.0,0.00165]
[1726912324091,0.72279121,63167.0,63166.0,0.00165]
[1726912333633,0.72267264,63167.0,63166.0,0.00165]
[1726912338765,0.71467264,63167.0,63166.0,0.00165]
[1726912338993,0.72267264,63167.0,63166.0,0.00165]
[1726912339215,0.70467264,63167.0,63166.0,0.00165]
[1726912339407,0.69667264,63167.0,63166.0,0.00165]
[1726912339646,0.70567264,63167.0,63166.0,0.00165]
[1726912339886,0.70267264,63167.0,63166.0,0.00165]
[1726912340347,0.70967264,63167.0,63166.0,0.00165]
[1726912346914,1.12229364,63167.0,63166.0,0.00165]
[1726912348007,1.1224672,63167.0,63166.0,0.00165]
[1726912354472,1.2650612,63167.0,63166.0,0.00165]
[1726912354933,1.1224672,63167.0,63166.0,0.00165]
[1726912359699,1.4390882,63167.0,63166.0,0.00165]
[1726912359924,1.5816822,63167.0,63166.0,0.00165]
[1726912360828,1.4390882,63167.0,63166.0,0.00165]
[1726912361285,1.5816822,63167.0,63166.0,0.00165]
[1726912365936,1.4390882,63167.0,63166.0,0.00165]
[1726912366168,1.60214187,63167.0,63166.0,0.00165]
[1726912366393,1.74473587,63167.0,63166.0,0.00165]
[1726912366852,1.60214187,63167.0,63166.0,0.00165]
[1726912367070,1.74473587,63167.0,63166.0,0.00165]
[1726912367939,1.60214187,63167.0,63166.0,0.00165]
[1726912368853,1.74473587,63167.0,63166.0,0.00165]
[1726912369279,1.60214187,63167.0,63166.0,0.00165]
[1726912370827,1.74473587,63167.0,63166.0,0.00165]
[1726912377042,1.7445063,63167.0,63166.0,0.00165]
[1726912377274,1.60194147,63167.0,63166.0,0.00165]
[1726912377744,1.7445063,63167.0,63166.0,0.00165]
[1726912380325,1.60194147,63167.0,63166.0,0.00165]
[1726912381013,1.60198537,63167.0,63166.0,0.00165]
[1726912382303,1.50598537,63167.0,63166.0,0.00165]
[1726912383155,1.18936437,63167.0,63166.0,0.00165]
[1726912385192,1.18948612,63167.0,63166.0,0.00165]
[1726912389835,0.23488045,63167.0,63166.0,0.00165]
[1726912390053,0.23488045,63167.0,63166.0,0.159963]
[1726912390054,0.33028745,63167.0,63166.0,0.159963]
[1726912390278,0.013,63167.0,63166.0,0.259363]
[1726912390492,0.013,63167.0,63166.0,0.58560066]
[1726912390709,0.013,63167.0,63166.0,0.60254542]
[1726912391183,0.006,63167.0,63166.0,0.91917142]
[1726912391386,0.01,63167.0,63166.0,0.91917142]
[1726912391608,0.217,63169.0,63168.0,0.158308]
[1726912392027,0.217,63169.0,63168.0,0.1679186]
[1726912393399,0.217,63169.0,63168.0,0.1689186]
[1726912393863,0.217,63169.0,63168.0,0.1699186]
[1726912394748,0.217,63169.0,63168.0,0.1689186]
[1726912394962,0.217,63169.0,63168.0,0.1699186]
[1726912406645,0.217,63169.0,63168.0,0.1715686]
[1726912421652,0.217,63169.0,63168.0,0.0132606]
[1726912429309,0.26445047,63169.0,63168.0,0.0132606]
[1726912429553,0.217,63169.0,63168.0,0.0132606]
[1726912430238,0.26445047,63169.0,63168.0,0.0132606]
[1726912430698,0.217,63169.0,63168.0,0.0132606]
[1726912431383,0.26445047,63169.0,63168.0,0.0132606]
[1726912432291,0.217,63169.0,63168.0,0.0132606]
[1726912432974,0.26449396,63169.0,63168.0,0.0132606]
[1726912433434,0.217,63169.0,63168.0,0.0132606]
[1726912434600,0.44657088,63169.0,63168.0,0.0132606]
[1726912434832,0.5964077,63169.0,63168.0,0.0132606]
[1726912435076,0.217,63169.0,63168.0,0.0132606]
[1726912435310,0.53301579,63169.0,63168.0,0.0132606]
[1726912435969,0.53301579,63169.0,63168.0,0.0122606]
[1726912436425,0.53401579,63169.0,63168.0,0.0122606]
[1726912436656,0.53401579,63169.0,63168.0,0.0112606]
[1726912436914,0.69432079,63169.0,63168.0,0.0112606]
[1726912437369,0.69447166,63169.0,63168.0,0.0112606]
[1726912438509,0.59963973,63169.0,63168.0,0.0112606]
[1726912439490,0.69468905,63169.0,63168.0,0.0112606]
[1726912440575,0.59963973,63169.0,63168.0,0.0112606]
[1726912441086,0.69468893,63169.0,63168.0,0.0112606]
[1726912441770,0.69470765,63169.0,63168.0,0.0112606]
[1726912442438,0.53640265,63169.0,63168.0,0.0112606]
[1726912442868,0.69470765,63169.0,63168.0,0.0112606]
[1726912443300,0.59965943,63169.0,63168.0,0.0112606]
[1726912443583,0.69470671,63169.0,63168.0,0.0112606]
[1726912443807,0.69470632,63169.0,63168.0,0.0112606]
[1726912444024,0.59965943,63169.0,63168.0,0.0112606]
[1726912444245,0.69470649,63169.0,63168.0,0.0112606]
[1726912444474,0.59965943,63169.0,63168.0,0.0112606]
[1726912444682,0.71846971,63169.0,63168.0,0.0112606]
[1726912444896,0.69470636,63169.0,63168.0,0.0112606]